[Event "ITT 1st Parada Jamundi 2022"]
[Site "Jamundi Valle"]
[Date "2022.12.09"]
[Round "6.1"]
[White "Henriquez Villagra, Cristobal"]
[Black "Avila Pavas, Santiago"]
[Result "1/2-1/2"]
[ECO "D05"]
[WhiteElo "2587"]
[BlackElo "2461"]
[Annotator "TA"]
[PlyCount "94"]
[EventDate "2022.12.05"]
[EventType "swiss"]
[EventCountry "COL"]
[SourceTitle "playchess.com"]
[Source "ChessBase"]
[SourceQuality "1"]
[TimeControl "5400+30"]

{[%evp 12,94,0,0,2,0,11,6,22,0,33,3,0,0,0,0,33,-16,-25,-41,-31,-22,0,0,0,-83,-78,-66,-79,-100,-77,-83,-64,-66,-49,-56,-54,-60,-58,-64,-27,-32,0,0,25,0,8,14,10,0,0,0,0,0,0,0,0,0,0,0,0,-16,0,-26,-34,-31,-37,-41,-50,-147,-145,-168,-144,-148,-46,-35,-10,-10,-12,-14,-6,-4,0,-2,-3]} 1. d4 {[%emt 0:04:09]} Nf6 {[%emt 0:00:38]} 2. Nf3 {[%emt 0:00:04]} e6 {[%emt 0:00:36]} 3. e3 {[%emt 0:00:23]} b6 {[%emt 0:00:29]} 4. Bd3 {[%emt 0:00:14]} Bb7 {[%emt 0:00:09]} 5. O-O {[%emt 0:00:10]} d5 {[%emt 0:00:38]} 6. Nbd2 {[%emt 0:04:58]} Nbd7 {[%emt 0:01:02]} 7. Qe2 {[%emt 0:02:28]} Ne4 {[%emt 0:05:42] D05: Colle System with ...e6.} 8. b3 {[%emt 0:03:55] [#]} a6 $146 {[%emt 0:02:18]} ({Predecessor:} 8... Bd6 9. Bb2 f5 10. Ne5 O-O 11. f3 Nxd2 12. Qxd2 Nxe5 13. dxe5 Be7 14. Qe2 Qe8 15. c4 {½-½ (64) Wageih,K (2110)-Blum,N (2224) Kemer 2007}) 9. Bb2 {[%emt 0:01:16]} Bd6 {[%emt 0:02:55]} 10. a4 {[%emt 0:05:58]} O-O {[%emt 0:01:50]} 11. Rfd1 {[%emt 0:07:25]} Bb4 {[%emt 0:03:58]} 12. Bxe4 {[%emt 0:02:45]} dxe4 {[%emt 0:00:12]} 13. Ne5 {[%emt 0:00:07]} Nf6 {[%emt 0:08:58][%cal Bd7f6,Bf6d5,Bd5c3][%mdl 32]} 14. Nf1 {[%emt 0:05:06]} (14. a5 $14) 14... Nd5 $11 {[%emt 0:09:08]} 15. c4 {[%emt 0:14:05]} Nc3 {[%emt 0:00:24]} 16. Bxc3 {[%emt 0:00:04]} Bxc3 {[%emt 0:00:05]} 17. Rac1 {[%emt 0:00:03]} Bb4 {[%emt 0:00:10] [#] ...f6 is the strong threat.} 18. f4 {[%emt 0:00:15]} (18. c5 $1 $11 {remains equal.}) 18... exf3 {[%emt 0:07:05]} 19. Nxf3 {[%emt 0:00:18]} Qe7 $36 {[%emt 0:05:07][%mdl 2048] Black is on the roll.} 20. e4 {[%emt 0:02:05]} Rad8 {[%emt 0:03:05]} 21. Ng3 {[%emt 0:03:31][%cal Bf1g3,Bg3e2,Be2d4,Bd4e6][%mdl 32]} f5 {[%emt 0:02:05]} 22. exf5 {[%emt 0:02:19]} exf5 {[%emt 0:00:07]} 23. Qxe7 {[%emt 0:02:12]} Bxe7 {[%emt 0:00:02]} 24. d5 {[%emt 0:00:08]} Rde8 {[%emt 0:11:32]} 25. Kf1 {[%emt 0:00:42]} Bb4 {[%emt 0:01:37]} 26. Ne2 {[%emt 0:01:13]} Re3 {[%emt 0:17:51]} 27. Ned4 {[%emt 0:00:08]} a5 {[%emt 0:01:23]} 28. Rb1 {[%emt 0:01:18][%cal Bc1b1,Bb1b2,Bb2f2][%mdl 32]} (28. Ne6 $5 {[%cal Re6f8]}) 28... Re4 {[%emt 0:01:51]} 29. Ne6 {[%emt 0:03:38] Threatens to win with Nfg5.} Rc8 $1 {[%emt 0:00:35]} 30. Rb2 {[%emt 0:03:30]} h6 {[%emt 0:03:49]} 31. Nfd4 {[%emt 0:04:49][%cal Bf3d4,Bd4f5,Bf5d6][%mdl 32]} c6 {[%emt 0:00:56]} 32. d6 {[%emt 0:04:57]} Bxd6 {[%emt 0:00:07] This pair of bishops is nice.} 33. Nxf5 {[%emt 0:00:06]} Bf8 {[%emt 0:06:25]} (33... Rxe6 {simplifies} 34. Rxd6 Rce8 35. Rxe6 Rxe6 36. Rd2 Rf6) 34. Nxf8 {[%emt 0:08:27]} Rxf8 {[%emt 0:00:53]} 35. Rf2 {[%emt 0:00:23]} Bc8 {[%emt 0:00:23] Inhibits Rd7.} 36. Nd6 {[%emt 0:04:15]} Rd8 {[%emt 0:00:06]} (36... Bg4 $5 {[%cal Rg4d1]} 37. Rxf8+ Kxf8 $11) 37. Rd3 {[%emt 0:02:06]} Bg4 {[%emt 0:00:50]} 38. h3 {[%emt 0:05:33]} Bh5 {[%emt 0:00:01]} 39. Rfd2 {[%emt 0:01:51]} Re6 {[%emt 0:00:01]} 40. Kf2 {[%emt 0:02:00]} (40. g4 $15 Bg6 41. Nf5) 40... Bg6 $17 {[%emt 0:00:40]} 41. Rd4 {[%emt 0:00:04]} Rf8+ {[%emt 0:00:14]} 42. Kg1 {[%emt 0:00:04] [#]} Re3 {[%emt 0:01:25]} (42... c5 $1 $17 43. Rg4 Kh7) 43. c5 $15 {[%emt 0:00:40]} bxc5 {[%emt 0:00:57]} 44. Rc4 {[%emt 0:00:09] The position is equal.} Rxb3 {[%emt 0:01:00]} 45. Rxc5 {[%emt 0:00:04]} Ra3 {[%emt 0:00:46]} 46. Rxa5 {[%emt 0:00:36]} Rd8 {[%emt 0:00:00]} 47. Rc5 {[%emt 0:01:38]} Rxa4 {[%emt 0:00:05] Weighted Error Value: White=0.13 (very precise) /Black=0.10 (very precise)} 1/2-1/2

[Event "ITT 1st Parada Jamundi 2022"]
[Site "Jamundi Valle"]
[Date "2022.12.09"]
[Round "6.2"]
[White "Delgado Ramirez, Neuris"]
[Black "Mirzoev, Azer"]
[Result "1/2-1/2"]
[ECO "C65"]
[WhiteElo "2572"]
[BlackElo "2462"]
[Annotator "TA"]
[PlyCount "93"]
[EventDate "2022.12.05"]
[EventType "swiss"]
[EventCountry "COL"]
[SourceTitle "playchess.com"]
[Source "ChessBase"]
[SourceQuality "1"]
[TimeControl "5400+30"]

{[%evp 9,93,24,35,29,33,25,27,12,11,12,13,21,18,0,0,11,18,0,0,12,0,0,0,0,20,18,41,41,52,0,18,-11,16,-10,0,0,0,0,0,0,0,0,0,0,0,0,0,0,0,0,0,0,0,0,0,0,0,-6,-8,-6,-8,-6,-6,-7,-4,-4,-4,-4,-4,-4,-4,-4,-4,-4,-4,-8,0,0,0,-4,0,0,-2,-3,-3,-3]} 1. e4 {[%emt 0:00:15]} e5 {[%emt 0:00:21]} 2. Nf3 {[%emt 0:00:14]} Nc6 {[%emt 0:00:10]} 3. Bb5 {[%emt 0:00:07]} Nf6 {[%emt 0:01:01]} 4. d3 {[%emt 0:06:28]} d6 {[%emt 0:00:56]} 5. c3 {[%emt 0:01:43]} Bd7 {[%emt 0:00:12]} 6. Ba4 {[%emt 0:00:39] C65: Ruy Lopez: Berlin Defence (3...Nf6), unusual lines and 4 0-0 Bc5.} g6 {[%emt 0:00:58]} 7. Nbd2 {[%emt 0:00:13]} Bg7 {[%emt 0:00:12]} 8. Nf1 {[%emt 0:00:06] White has an edge.} O-O {[%emt 0:02:05]} 9. Ng3 {[%emt 0:01:03]} Re8 {[%emt 0:00:19]} 10. O-O {[%emt 0:00:55]} h6 {[%emt 0:03:25] [#]} 11. Bb3 $146 {[%emt 0:01:57]} ({Predecessor:} 11. Re1 d5 12. d4 Nxe4 13. Bxc6 Bxc6 14. Nxe5 Nxg3 15. hxg3 Re6 16. Bd2 Qe8 17. Nxc6 Rxe1+ 18. Qxe1 Qxc6 {½-½ (30) Wang,C (2513)-Lin,C (2483) China 2014}) 11... Be6 {[%emt 0:10:02]} 12. Bxe6 {[%emt 0:06:48]} Rxe6 {[%emt 0:00:07]} 13. c4 {[%emt 0:02:52]} Re8 {[%emt 0:00:24]} 14. Be3 {[%emt 0:00:56]} a5 {[%emt 0:01:47]} 15. h3 {[%emt 0:04:26]} Kh7 {[%emt 0:01:29]} 16. Qd2 {[%emt 0:02:40]} Qd7 {[%emt 0:06:10]} 17. Nh2 {[%emt 0:03:23]} Ng8 {[%emt 0:06:33]} 18. f4 {[%emt 0:04:34]} exf4 {[%emt 0:00:05]} 19. Bxf4 {[%emt 0:06:12]} (19. Rxf4 $14 Be5 20. Rf3) 19... Nd4 {[%emt 0:01:39] The position is equal.} 20. Nf3 {[%emt 0:01:35]} b5 {[%emt 0:00:42]} 21. Be3 {[%emt 0:04:11]} Nxf3+ {[%emt 0:04:29]} 22. Rxf3 {[%emt 0:00:13]} bxc4 {[%emt 0:00:05]} 23. dxc4 {[%emt 0:01:20]} Qe6 {[%emt 0:04:53]} 24. Raf1 {[%emt 0:02:25]} Re7 {[%emt 0:06:31]} 25. b3 {[%emt 0:02:06]} a4 {[%emt 0:01:31]} 26. Bd4 {[%emt 0:04:29]} axb3 {[%emt 0:02:08]} 27. axb3 {[%emt 0:00:20]} Bxd4+ {[%emt 0:01:27]} 28. Qxd4 {[%emt 0:00:04]} c5 {[%emt 0:00:49]} 29. Qd3 {[%emt 0:01:33]} Raa7 {[%emt 0:01:02]} 30. Ne2 {[%emt 0:01:55]} Qe5 {[%emt 0:03:19]} 31. Nc3 {[%emt 0:01:20]} Kg7 {[%emt 0:00:55]} 32. Qd2 {[%emt 0:05:10]} Re6 {[%emt 0:04:37]} ({Don't take} 32... Qd4+ 33. Qxd4+ cxd4 34. Nb5 $16) 33. Qf2 {[%emt 0:05:46]} Rf6 {[%emt 0:03:40]} 34. Nd5 {[%emt 0:00:11]} (34. Qg3 {simplifies} Qxg3 35. Rxg3 Rd7 36. Rd3) 34... Rxf3 {[%emt 0:00:21]} 35. Qxf3 {[%emt 0:00:04]} h5 {[%emt 0:01:20]} (35... Qd4+ {is more complex.} 36. Kh2 h5 37. Kh1 Qb2) 36. Qc3 {[%emt 0:01:20]} (36. Kh1 {with more complications.} Nh6 37. Kg1 Ra1 38. Rxa1 Qxa1+ 39. Qf1) 36... Qxc3 {[%emt 0:02:24]} 37. Nxc3 $11 {[%emt 0:00:06][%mdl 4096] Endgame KRN-KRN} Nf6 {[%emt 0:01:41]} 38. Nb5 {[%emt 0:00:16]} Ra6 {[%emt 0:00:30]} 39. Nxd6 {[%emt 0:00:48]} Rxd6 {[%emt 0:01:19] KRN-KR} 40. e5 {[%emt 0:00:03][%csl LRd6,LRf6]} Re6 {[%emt 0:00:57]} 41. exf6+ {[%emt 0:00:07]} Rxf6 {[%emt 0:01:05] KR-KR} 42. Rd1 {[%emt 0:01:10]} Rf5 {[%emt 0:01:43]} 43. h4 {[%emt 0:02:34]} Kf6 {[%emt 0:01:16]} 44. g3 {[%emt 0:00:45]} Rf3 {[%emt 0:01:22][%csl LRb3,LRg3]} 45. Kg2 {[%emt 0:00:06]} Rxb3 {[%emt 0:00:07] [#] White must now prevent ...Rb2+.} 46. Rd5 {[%emt 0:00:05]} Rc3 {[%emt 0:00:05]} 47. Rxc5 {[%emt 0:28:27] Weighted Error Value: White=0.05 (flawless) /Black=0.03 (flawless)} 1/2-1/2

[Event "ITT 1st Parada Jamundi 2022"]
[Site "Jamundi Valle"]
[Date "2022.12.09"]
[Round "6.3"]
[White "Cardoso Cardoso, Jose Gabriel"]
[Black "Paredes Lagos, Anthony Javier"]
[Result "1/2-1/2"]
[ECO "D21"]
[WhiteElo "2483"]
[BlackElo "2230"]
[Annotator "TA"]
[PlyCount "88"]
[EventDate "2022.12.05"]
[EventType "swiss"]
[EventCountry "COL"]
[SourceTitle "playchess.com"]
[Source "ChessBase"]
[SourceQuality "1"]
[TimeControl "5400+30"]

{[%evp 13,88,8,20,25,44,41,29,26,27,23,20,25,22,19,29,26,25,29,26,43,27,25,28,37,27,14,45,19,28,30,16,22,20,0,33,40,77,10,62,58,68,63,73,62,95,101,129,131,128,119,179,107,110,104,118,119,119,116,104,73,75,74,102,72,75,77,54,-8,-8,-58,-61,-110,-74,-63,-62,-1570,-794]} 1. d4 {[%emt 0:00:25]} d5 {[%emt 0:19:49]} 2. c4 {[%emt 0:00:06]} dxc4 {[%emt 0:00:24]} 3. Nf3 {[%emt 0:00:06]} Nf6 {[%emt 0:00:25]} 4. e3 {[%emt 0:00:09]} c5 {[%emt 0:00:05]} 5. Bxc4 {[%emt 0:00:09]} cxd4 {[%emt 0:00:04]} 6. Qxd4 {[%emt 0:01:39]} Qxd4 {[%emt 0:03:41]} 7. Nxd4 {[%emt 0:00:09]} a6 {[%emt 0:01:21]} ({Resist} 7... e5 8. Nb5 Na6 9. O-O $14) 8. O-O {[%emt 0:04:30] D21: Queen's Gambit Accepted: 3 Nf3 sidelines.} g6 {[%emt 0:10:13] [#]} 9. Nc3 $146 {[%emt 0:03:20]} ({Predecessor:} 9. b3 Bg7 10. Bb2 O-O 11. Nd2 Bd7 12. Rac1 Nc6 13. Nxc6 Bxc6 14. Nf3 Bxf3 15. gxf3 b5 {1-0 (48) Lomaia,D (1946)-Tsotsonava,E (1805) Tbilisi 2021}) 9... Bg7 {[%emt 0:00:53]} 10. Be2 {[%emt 0:05:02] White has an edge.} O-O {[%emt 0:58:35]} 11. Rd1 {[%emt 0:07:47]} Bd7 {[%emt 0:00:00]} 12. e4 {[%emt 0:06:12]} Nc6 {[%emt 0:00:00] Prevents e5.} 13. Nb3 {[%emt 0:01:19]} Rad8 {[%emt 0:00:00]} 14. Be3 {[%emt 0:03:52] Hoping for Bb6.} Be6 {[%emt 0:00:00]} 15. Nc5 {[%emt 0:04:29]} Rxd1+ {[%emt 0:00:00]} 16. Rxd1 {[%emt 0:00:09]} Bc8 {[%emt 0:00:00]} 17. f3 {[%emt 0:01:22]} Rd8 {[%emt 0:00:00]} 18. Rxd8+ {[%emt 0:04:02]} Nxd8 {[%emt 0:00:00]} 19. Kf2 {[%emt 0:02:40]} h5 {[%emt 0:00:00]} 20. Ke1 {[%emt 0:02:40]} Nd7 {[%emt 0:00:00]} 21. Nb3 {[%emt 0:02:54]} Nc6 {[%emt 0:00:00]} 22. Kd2 {[%emt 0:01:39]} Kf8 {[%emt 0:00:00]} 23. f4 {[%emt 0:01:43]} Ke8 {[%emt 0:00:00]} 24. e5 {[%emt 0:01:42]} f6 {[%emt 0:00:00]} 25. exf6 {[%emt 0:03:11]} (25. e6 $16 Ndb8 26. Nd5) 25... exf6 {[%emt 0:00:00]} (25... Nxf6 $11 26. h3 Nd7) 26. f5 $14 {[%emt 0:01:26]} gxf5 {[%emt 0:00:00]} 27. Bxh5+ {[%emt 0:00:08]} Ke7 {[%emt 0:00:00]} 28. Be2 {[%emt 0:01:26]} Nce5 {[%emt 0:00:00]} 29. Nd4 {[%emt 0:05:00]} Nf8 {[%emt 0:00:00]} 30. h4 {[%emt 0:10:11]} b5 {[%emt 0:00:00]} 31. g3 {[%emt 0:05:03]} Kd6 {[%emt 0:00:00]} (31... Ng4 $16 {was worth a try.}) 32. b3 {[%emt 0:01:32]} ({Better is} 32. b4 $18) 32... Ng4 $16 {[%emt 0:01:24]} 33. Bf4+ {[%emt 0:04:38]} Kc5 {[%emt 0:00:03]} 34. Nc2 {[%emt 0:02:59] White is more active.} Ne6 {[%emt 0:01:55]} 35. b4+ {[%emt 0:00:55]} Kc6 {[%emt 0:00:10]} 36. Bf3+ {[%emt 0:00:23]} Kd7 {[%emt 0:00:17]} 37. Nd5 {[%emt 0:00:51]} Nxf4 {[%emt 0:01:00]} 38. Nxf4 {[%emt 0:00:25]} Kd6 {[%emt 0:00:56]} 39. Nd4 {[%emt 0:02:42][%cal Of3b7]} Bh6 {[%emt 0:02:09]} 40. Be2 {[%emt 0:02:05]} (40. Kd3 $14) 40... Ke5 $11 {[%emt 0:02:06][%csl LRd4,LRf4]} 41. Kd3 {[%emt 0:10:00]} (41. Bxg4 $11 fxg4 42. Ke3) 41... Nf2+ $15 42. Kc3 {[%emt 0:00:30]} (42. Ke3 $15 {was preferrable.} Ne4 43. Kd3) 42... Ne4+ {[%emt 0:06:00]} 43. Kd3 Nxg3 {[%emt 0:00:30]} 44. Kd2 $2 {[%emt 0:01:00][%mdl 8192] [#]} Ne4+ {[%emt 0:00:30][%mdl 32768] Never resign too early!   Weighted Error Value: White=0.30/Black=0.11 (very precise) . An unexpected result.} 1/2-1/2

[Event "ITT 1st Parada Jamundi 2022"]
[Site "Jamundi Valle"]
[Date "2022.12.09"]
[Round "6.4"]
[White "Argote Heredia, Valentina"]
[Black "Cruz, Cristhian"]
[Result "1/2-1/2"]
[ECO "B15"]
[WhiteElo "2140"]
[BlackElo "2552"]
[Annotator "TA"]
[PlyCount "83"]
[EventDate "2022.12.05"]
[EventType "swiss"]
[EventCountry "COL"]
[SourceTitle "playchess.com"]
[Source "ChessBase"]
[SourceQuality "1"]
[TimeControl "5400+30"]

{[%evp 15,83,18,18,22,37,10,17,10,22,35,27,0,4,3,11,-14,0,-26,4,0,0,0,0,0,0,0,0,0,51,48,70,70,70,76,99,68,151,162,180,58,66,45,194,173,166,120,117,117,132,127,137,118,110,106,95,98,85,56,128,0,0,0,0,0,0,0,0,0,0,0]} 1. e4 {[%emt 0:00:38]} c6 {[%emt 0:01:17]} 2. d4 {[%emt 0:00:23]} d5 {[%emt 0:01:01]} 3. Nc3 {[%emt 0:00:16]} dxe4 {[%emt 0:02:58]} 4. Nxe4 {[%emt 0:00:08]} Nf6 {[%emt 0:00:43]} 5. Nxf6+ {[%emt 0:01:27]} exf6 {[%emt 0:00:10]} 6. c3 {[%emt 0:01:04]} Bd6 {[%emt 0:01:20]} 7. Bd3 {[%emt 0:01:05]} O-O {[%emt 0:03:22]} 8. Ne2 {[%emt 0:02:34]} Re8 {[%emt 0:03:56]} 9. O-O {[%emt 0:00:37] B15: Caro-Kann: 3 Nc3: 3...g6 and 3...dxe4 4 Nxe4 Nf6 5 Nxf6+ exf6.} Qc7 {[%emt 0:05:16]} 10. h3 {[%emt 0:01:09]} Be6 {[%emt 0:01:51]} 11. c4 {[%emt 0:01:32] [#]} Qd7 $146 {[%emt 0:10:28]} ({Predecessor:} 11... Rd8 12. c5 Bf8 13. Nf4 Qd7 14. Qc2 g6 15. Re1 Bd5 16. Be3 a5 17. b3 Na6 {½-½ (28) Senlle Caride,M (2318)-Gomes,M (2284) Portugal 2018}) 12. Nc3 {[%emt 0:15:08] Threatens to win with d5.} Bf5 {[%emt 0:10:42]} 13. Qf3 {[%emt 0:01:10]} Bxd3 {[%emt 0:00:41]} 14. Qxd3 {[%emt 0:00:05]} Na6 {[%emt 0:03:47][%cal Bb8a6,Ba6b4,Bb4c2][%mdl 32]} 15. Qf3 {[%emt 0:05:24]} Nb4 {[%emt 0:05:20] And now ...Nc2 would win.} 16. Be3 {[%emt 0:15:34]} Bc7 {[%emt 0:06:06]} ({Don't take} 16... Nd3 17. Rab1 Nb4 18. Rfc1 $14) (16... Nc2 $5 {[%cal Rc2a1]}) 17. Rad1 {[%emt 0:01:38]} Nc2 {[%emt 0:14:54]} 18. Bf4 {[%emt 0:02:28] Inhibits Qd6.} Nxd4 {[%emt 0:01:57]} 19. Rxd4 {[%emt 0:00:20][%mdl 64]} Qxd4 {[%emt 0:00:01]} 20. Bxc7 {[%emt 0:00:08]} Qxc4 {[%emt 0:00:05]} 21. Rd1 {[%emt 0:04:00]} Re7 {[%emt 0:01:01]} (21... Rac8 $11 22. Qg3 Qb4) 22. Bf4 $14 {[%emt 0:02:38][%mdl 1024] White has compensation.} Qe6 {[%emt 0:06:29]} 23. Rd4 $1 {[%emt 0:08:06]} Rae8 {[%emt 0:04:43]} 24. Be3 {[%emt 0:04:48]} a6 {[%emt 0:00:31]} 25. Ne4 {[%emt 0:07:00][%cal Bc3e4,Be4c5,Bc5b7,Bb7d6][%mdl 32]} c5 {[%emt 0:02:29]} (25... Qe5 $14) 26. Nxc5 $16 {[%emt 0:00:31]} Qxa2 {[%emt 0:00:02]} 27. b4 {[%emt 0:00:33]} (27. Nxb7 $18 {Nd6 is the strong threat.} Rb8 28. Bh6 (28. Qd1 Qxb2 29. Nc5 Qb5 $14) 28... Qb1+ 29. Kh2) 27... b6 $14 {[%emt 0:04:47]} 28. Nb7 {[%emt 0:02:45] Hoping for Nd6.} Qb1+ {[%emt 0:03:59]} (28... Qe6 $1 $14) 29. Kh2 $1 $18 {[%emt 0:00:04]} Re4 {[%emt 0:00:21]} 30. Rd1 {[%emt 0:01:28]} ({White should try} 30. Qf5 $18) 30... Qxb4 $16 {[%emt 0:00:29]} 31. Nd6 {[%emt 0:00:24]} Rxe3 {[%emt 0:00:02]} 32. fxe3 {[%emt 0:00:15]} Rf8 {[%emt 0:00:07]} 33. Rd4 {[%emt 0:04:52]} Qc5 {[%emt 0:00:16]} 34. Rd5 {[%emt 0:00:16] Inhibits b5.} Qc7 {[%emt 0:00:24]} 35. Kg1 {[%emt 0:02:57]} b5 {[%emt 0:00:56]} 36. Nf5 {[%emt 0:00:48][%cal Od5d7] White is much more active.} b4 {[%emt 0:01:17] [#]} ({Black should play} 36... g6 $1 $14) 37. Qg4 {[%emt 0:01:41]} (37. Rd7 $1 $16 {[%cal Rd7c7][%mdl 512]} Qc3 38. Ne7+ Kh8 39. Kf2) 37... g6 $11 {[%emt 0:00:52] The position is equal.} 38. Nh6+ {[%emt 0:00:31]} Kg7 {[%emt 0:00:02]} 39. Nf5+ {[%emt 0:01:17]} (39. Qxb4 Rb8 40. Qd6 Qxd6 41. Rxd6 Kxh6 42. Rxa6 f5 $17) 39... Kg8 $1 {[%emt 0:00:01]} 40. Nh6+ {[%emt 0:03:39]} Kg7 {[%emt 0:00:01]} 41. Nf5+ {[%emt 0:00:04]} ({Of course not} 41. Qxb4 Rb8 42. Qd6 Qxd6 43. Rxd6 Kxh6 44. Rxf6 a5 45. Rxf7 Ra8 $17) 41... Kg8 $1 {[%emt 0:00:07]} 42. Nh6+ {[%emt 0:00:20] Blacks defense is rewarded with a draw.   Weighted Error Value: White=0.15 (very precise) /Black=0.16 (very precise)} 1/2-1/2

[Event "ITT 1st Parada Jamundi 2022"]
[Site "Jamundi Valle"]
[Date "2022.12.09"]
[Round "6.5"]
[White "Zuluaga Mancilla, Cesar"]
[Black "Cori Quispe, Kevin Joel"]
[Result "1-0"]
[ECO "E11"]
[WhiteElo "2230"]
[BlackElo "2469"]
[Annotator "TA"]
[PlyCount "109"]
[EventDate "2022.12.05"]
[EventType "swiss"]
[EventCountry "COL"]
[SourceTitle "playchess.com"]
[Source "ChessBase"]
[SourceQuality "1"]
[TimeControl "5400+30"]

{[%evp 10,109,19,24,36,27,59,22,34,20,20,34,114,83,120,120,110,114,117,98,103,83,119,80,83,40,39,20,43,41,62,68,82,73,85,79,75,12,60,56,64,28,47,0,0,-22,59,14,20,41,90,33,42,26,71,7,77,25,21,36,108,26,27,0,95,7,7,8,37,24,40,33,165,176,157,148,159,167,222,131,150,104,252,250,237,249,342,312,352,306,310,275,434,349,721,703,720,719,625,585,546,560]} 1. d4 {[%emt 0:07:44]} Nf6 {[%emt 0:00:21]} 2. Nf3 {[%emt 0:00:17]} e6 {[%emt 0:00:42]} 3. c4 {[%emt 0:00:47]} Bb4+ {[%emt 0:00:42]} 4. Nbd2 {[%emt 0:00:44]} O-O {[%emt 0:00:13]} 5. a3 {[%emt 0:00:10]} Be7 {[%emt 0:00:05]} 6. e4 {[%emt 0:00:21]} d6 {[%emt 0:00:06][%cal Oe6e5] E11: Bogo-Indian.} 7. Bd3 {[%emt 0:01:24]} Nbd7 {[%emt 0:12:15]} 8. b4 {[%emt 0:01:42]} c5 {[%emt 0:05:58] The position is equal.} 9. bxc5 {[%emt 0:01:47]} dxc5 {[%emt 0:00:05]} 10. d5 {[%emt 0:00:07]} e5 {[%emt 0:00:34] [#]} (10... exd5 $14 11. cxd5 (11. exd5 b5 $11) 11... b5) 11. Nf1 $146 {[%emt 0:00:56]} ({Predecessor:} 11. O-O Ne8 12. Bb2 Bf6 13. a4 Nd6 14. a5 Re8 15. Qb3 Rb8 16. Rfb1 Nf8 17. Nf1 {1-0 (28) Williams,S (2455)-Tarjan,J (2490) Chess.com INT 2015}) 11... Nh5 {[%emt 0:01:14]} 12. g3 {[%emt 0:05:49] Inhibits Nf4. White is more active.} Re8 {[%emt 0:03:30]} 13. Ne3 {[%emt 0:01:25]} Bf8 {[%emt 0:00:30]} 14. Bb2 {[%emt 0:01:11]} g6 {[%emt 0:00:55]} 15. Nd2 {[%emt 0:01:23]} Ndf6 {[%emt 0:03:14]} 16. Bc3 {[%emt 0:02:50]} Bh3 {[%emt 0:02:31]} 17. Be2 {[%emt 0:05:39]} Bh6 {[%emt 0:06:13]} 18. Bf3 {[%emt 0:00:35]} (18. Bf1 $5 {[%cal Rf1h3]} Qd7 19. Qf3 $14 (19. Bxh3 Qxh3 20. Qe2 Rad8 $14)) 18... Qc8 {[%emt 0:02:40]} 19. Qe2 {[%emt 0:04:43]} a6 {[%emt 0:01:13]} 20. a4 {[%emt 0:00:17]} b6 {[%emt 0:00:16]} 21. Qd3 {[%emt 0:06:52]} Rb8 {[%emt 0:01:04]} 22. Ke2 {[%emt 0:02:36]} Ng7 {[%emt 0:12:46]} 23. Kd1 {[%emt 0:06:08]} (23. Rhg1 $16) 23... Nfh5 {[%emt 0:04:54]} (23... Re7 $11) 24. Kc2 $14 {[%emt 0:01:30]} Bd7 {[%emt 0:01:12]} 25. Rhb1 {[%emt 0:00:20]} (25. h3 $5 {[%cal Re3g4]}) 25... f5 {[%emt 0:01:02]} 26. Bg2 {[%emt 0:04:02]} (26. exf5 $14 {is more appropriate.} Nxf5 27. Nxf5 Bxf5 28. Be4) 26... Nf6 $11 {[%emt 0:04:22]} 27. f3 {[%emt 0:02:44]} Ngh5 {[%emt 0:00:07]} (27... Rb7 $11) 28. Qe2 {[%emt 0:01:43]} (28. exf5 {looks sharper.} gxf5 29. Re1 b5 30. axb5 axb5 31. d6) 28... Bf8 {[%emt 0:00:41]} 29. Bh3 {[%emt 0:03:25]} Bd6 {[%emt 0:00:21]} (29... Bg7 $14) 30. Qe1 {[%emt 0:06:19]} (30. Rb3 $16) 30... Ng7 $1 $14 {[%emt 0:03:21]} 31. Bf1 {[%emt 0:01:04]} Re7 {[%emt 0:01:43]} 32. Kc1 {[%emt 0:00:18]} (32. a5 $16 b5 33. cxb5 axb5 34. a6) 32... Qe8 {[%emt 0:00:31]} (32... fxe4 $11 {keeps the balance.} 33. fxe4 (33. Nxe4 Nxe4 34. fxe4 Rf7 $14) 33... Rf7) 33. Qd1 {[%emt 0:00:07]} (33. a5 $16) 33... Rf7 {[%emt 0:01:06]} 34. Bd3 {[%emt 0:00:18]} Nfh5 {[%emt 0:00:48]} ({Black should play} 34... Qc8 $14) 35. Bc2 {[%emt 0:02:04]} (35. a5 $16) 35... Qe7 {[%emt 0:02:48]} 36. Qe2 {[%emt 0:00:29]} Rff8 {[%emt 0:02:30]} (36... f4 $11 {remains equal.} 37. Nef1 (37. Ng4 Qg5 $15) 37... Ne8) 37. Rb2 {[%emt 0:00:43]} (37. exf5 $16 gxf5 38. Ng2) 37... f4 $11 {[%emt 0:03:52]} 38. Nef1 {[%emt 0:00:55]} fxg3 {[%emt 0:00:05]} 39. hxg3 {[%emt 0:00:16]} Qg5 {[%emt 0:00:04]} (39... Ne8 {simplifies} 40. Rab1 Bc7 41. a5 b5) 40. Qf2 {[%emt 0:01:34]} b5 {[%emt 0:00:50]} (40... Ne8 $14) 41. axb5 $18 {[%emt 0:00:43]} axb5 {[%emt 0:00:04]} 42. cxb5 {[%emt 0:03:45]} Bxb5 {[%emt 0:00:03]} 43. Kd1 {[%emt 0:03:55]} Nf6 {[%emt 0:08:55]} (43... Bxf1 $142 44. Nxf1 Rxb2 45. Bxb2 c4) 44. Qe3 {[%emt 0:02:52]} ({White should try} 44. Ne3 $18) 44... Qh5 $16 {[%emt 0:01:20][%cal Og7f5] [#] aiming for ...Nf5!} 45. Bd3 {[%emt 0:01:17]} (45. Qe1 $142) 45... Bxd3 {[%emt 0:01:19]} (45... c4 $16 46. Be2 (46. Bxc4 Bxc4 47. Rxb8 Bxb8 $11) (46. Nxc4 Nxd5 47. exd5 Rxf3 $16) 46... Nf5) 46. Rxb8 $18 {[%emt 0:00:29] Really sharp!} ({Don't do} 46. Qxd3 $6 Qh3 47. Ra6 Rbd8 $18) 46... Bxb8 {[%emt 0:00:09]} 47. Qxd3 {[%emt 0:00:07]} Nfe8 {[%emt 0:00:11]} 48. Kc2 {[%emt 0:00:56]} Nd6 {[%emt 0:00:26]} 49. Ne3 {[%emt 0:00:27][%cal Bf1e3,Be3g4,Bg4h6][%mdl 32]} Qg5 {[%emt 0:01:36]} 50. Ra8 {[%emt 0:02:01] Black must now prevent Ng4.} Qe7 {[%emt 0:06:52]} (50... Qxg3 $2 51. Ng4 Qh4 52. Bxe5 $18) (50... Nf7 {keeps fighting.} 51. Qb5 Bc7) 51. Qa6 {[%emt 0:00:22] Threatens to win with Ng4.} Nh5 $2 {[%emt 0:00:21] [#]} (51... Bc7 52. Ng4 Rb8 53. Rxb8+ Bxb8 54. Bxe5 Nge8 55. Nh6+ Kf8) 52. Ng4 {[%emt 0:00:37] White is clearly winning.} Nf7 {[%emt 0:01:30]} 53. Qe6 {[%emt 0:00:31]} Bd6 {[%emt 0:01:02]} 54. Nh6+ {[%emt 0:01:01]} Kg7 {[%emt 0:00:04]} 55. Rxf8 {[%emt 0:00:20] Weighted Error Value: White=0.28 (precise) /Black=0.36} 1-0